bitfinex/quotes_ETHUSD_20230831
["timestamp","ask_amount","ask_price","bid_price","bid_amount"]
[1693501884244,0.002,1659.0,1658.7,13.56466]
[1693501887674,0.002,1659.0,1658.8,3.0]
[1693501887846,2.2405,1659.1,1658.9,9.04212]
[1693501887847,2.2425,1659.1,1658.9,9.04212]
[1693501888039,2.2405,1659.1,1658.9,9.04212]
[1693501888540,2.2405,1659.1,1658.9,4.52106]
[1693501890049,2.2405,1659.1,1658.8,4.52123]
[1693501890344,2.2425,1659.1,1658.8,4.52123]
[1693501891422,2.2425,1659.1,1658.8,9.04257]
[1693501891628,2.2425,1659.1,1658.8,13.56391]
[1693501892014,2.2425,1659.1,1658.8,9.04257]
[1693501892215,9.6908133,1659.1,1658.7,0.4813326]
[1693501892415,0.002,1659.0,1658.6,4.52179]
[1693501892619,1.18368133,1659.0,1658.6,9.04351]
[1693501892922,0.55206091,1658.9,1658.6,13.56539]
[1693501893433,2.2425,1659.1,1658.6,13.56539]
[1693501893636,0.002,1659.0,1658.6,13.56539]
[1693501894448,0.002,1659.0,1658.6,9.04351]
[1693501896113,4.52284,1659.0,1658.6,9.04351]
[1693501896318,0.452284,1658.9,1658.6,9.04351]
[1693501898227,0.452284,1658.9,1658.6,4.52172]
[1693501900053,0.452284,1658.9,1658.6,9.0436]
[1693501900254,2.2425,1659.1,1658.6,9.0436]
[1693501900426,0.002,1659.0,1658.6,9.0436]
[1693501901254,0.002,1659.0,1658.6,13.56548]
[1693501901552,0.002,1659.0,1658.6,9.0436]
[1693501902859,0.002,1659.0,1658.6,13.56548]
[1693501903232,0.002,1659.0,1658.6,9.0436]
[1693501903759,5.199133,1659.0,1658.6,4.52172]
[1693501903938,5.197133,1659.0,1658.6,4.52172]
[1693501905231,9.717963,1659.0,1658.6,4.52172]
[1693501905827,2.126,1658.9,1658.5,0.48646527]
[1693501906029,9.04276,1658.8,1658.4,4.5604]
[1693501906250,0.904276,1658.7,1658.5,0.038]
[1693501906466,5.425936,1658.7,1658.4,4.5604]
[1693501906673,0.904276,1658.7,1658.4,4.5604]
[1693501907148,4.52137,1658.8,1658.4,4.5604]
[1693501907349,4.52137,1658.8,1658.5,0.038]
[1693501908180,0.49061171,1658.7,1658.5,0.038]
[1693501908360,0.49061171,1658.7,1658.3,0.038]
[1693501908361,4.52188,1658.6,1658.3,0.038]
[1693501908861,2.126,1658.5,1658.3,0.038]
[1693501909046,2.126,1658.5,1658.1,4.52323]
[1693501909047,6.64841,1658.5,1658.1,4.52323]
[1693501909243,6.64841,1658.5,1658.2,0.038]
[1693501909244,2.1092,1658.4,1658.2,0.038]
[1693501909446,2.1092,1658.4,1658.1,4.56123]
[1693501909665,2.772361,1658.4,1658.1,4.56123]
[1693501911383,7.294831,1658.4,1658.1,0.038]
[1693501911746,2.772361,1658.4,1658.1,4.56124]
[1693501912376,2.1092,1658.4,1658.1,4.56124]
[1693501913482,4.52241,1658.5,1658.1,4.56124]
[1693501913686,4.52241,1658.5,1658.2,0.038]
[1693501914191,8.74082,1658.6,1658.2,0.038]
[1693501914362,6.47097321,1658.7,1658.2,0.038]
[1693501914363,0.49061171,1658.7,1658.2,14.20988]
[1693501914554,0.49061171,1658.7,1658.4,4.52237]
[1693501914754,0.49061171,1658.7,1658.4,4.56037]
[1693501915177,0.49061171,1658.7,1658.4,7.4881133]
[1693501915355,4.4067,1659.1,1658.6,15.69164]
[1693501915555,4.4067,1659.1,1658.8,6.6473]
[1693501915556,0.002,1659.0,1658.8,6.6473]
[1693501915753,4.4067,1659.1,1658.8,6.6473]
[1693501916060,2.2739,1659.1,1658.8,6.6473]
[1693501916406,6.79445,1659.1,1658.8,6.6473]
[1693501916753,7.925922,1659.1,1658.6,2.126]
[1693501916950,0.002,1659.0,1658.6,2.126]
[1693501917187,4.52304,1659.0,1658.6,2.126]
[1693501917389,13.56287,1659.0,1658.5,3.0]
[1693501917712,9.04286,1658.8,1658.4,0.038]
[1693501917864,9.04286,1658.8,1658.4,3.038]
[1693501918061,13.56433,1658.8,1658.5,0.038]
[1693501918257,13.56433,1658.8,1658.4,0.038]
[1693501918658,9.04286,1658.8,1658.3,6.68655]
[1693501918857,6.70264,1658.7,1658.4,0.038]
[1693501919598,6.70264,1658.7,1658.4,2.164]
[1693501919763,6.70264,1658.7,1658.4,0.038]
[1693501920700,11.22428,1658.7,1658.4,0.038]
[1693501923076,0.54996022,1658.6,1658.4,0.038]
[1693501923405,5.69933402,1658.6,1658.3,2.164]
[1693501924302,10.22124402,1658.6,1658.3,0.038]
[1693501925506,14.74315402,1658.6,1658.3,0.038]
[1693501925694,17.67089732,1658.6,1658.3,0.038]
[1693501925891,1.76708973,1658.5,1658.3,0.038]
[1693501926093,1.76708973,1658.5,1658.2,0.47438141]
[1693501926094,9.04486,1658.4,1658.2,0.038]
[1693501926297,6.28934973,1658.5,1658.0,2.164]
[1693501926611,4.52243,1658.4,1658.1,0.038]
[1693501927396,6.75626,1658.5,1658.1,6.68722]
[1693501927397,2.234,1658.5,1658.1,6.68722]
[1693501927601,2.234,1658.5,1658.2,0.038]
[1693501927802,2.5751424,1658.5,1658.2,4.56094]
[1693501928105,6.028,1658.6,1658.3,2.126]
[1693501928305,6.028,1658.6,1658.5,2.126]
[1693501928507,6.028,1658.6,1658.5,6.64815]
[1693501929008,6.028,1658.6,1658.5,17.0980433]
[1693501929304,6.028,1658.6,1658.5,23.7461933]
[1693501929667,6.028,1658.6,1658.5,23.99481263]
[1693501930172,6.49941841,1658.6,1658.5,26.12081263]
[1693501930372,6.49941841,1658.6,1658.5,27.64894607]
[1693501930588,6.028,1658.6,1658.5,27.64894607]
[1693501932172,6.028,1658.6,1658.5,17.0980433]
[1693501932426,6.028,1658.6,1658.5,19.2240433]
[1693501932623,6.028,1658.6,1658.5,23.7461933]
[1693501932905,6.028,1658.6,1658.5,25.27433689]
[1693501933630,0.002,1659.2,1658.6,3.0]
[1693501933934,5.91737231,1659.5,1659.1,2.126]
[1693501933935,0.002,1659.3,1659.1,2.126]
[1693501934074,11.92506755,1659.5,1659.1,2.126]
[1693501934075,0.002,1659.4,1659.1,6.64651]
[1693501935572,0.002,1659.4,1659.2,6.64622]
[1693501935773,2.2735,1659.5,1659.2,6.64622]
[1693501935988,2.2735,1659.5,1659.1,11.16682]
[1693501936194,0.002,1659.4,1659.1,12.735556]
[1693501936412,0.002,1659.4,1659.2,2.126]
[1693501936619,2.2735,1659.5,1659.2,6.64622]
[1693501937884,0.44131843,1659.4,1659.2,6.64622]
[1693501938406,3.0,1659.2,1658.6,1.57186636]
[1693501938605,3.0,1659.2,1658.5,1.11571009]
[1693501938606,12.4512233,1659.1,1658.5,0.48397785]
[1693501938807,1.24712233,1659.0,1658.3,11.20905]
[1693501939118,4.52136,1658.8,1658.4,0.038]
[1693501939505,13.56408,1658.8,1658.4,0.038]
[1693501939686,16.4918233,1658.8,1658.4,0.038]
[1693501939886,9.04403,1658.6,1658.3,0.038]
[1693501940312,9.04403,1658.6,1658.2,0.038]
[1693501940519,4.52201,1658.6,1658.2,2.164]
[1693501940717,4.52201,1658.6,1658.3,0.038]
[1693501940917,5.79943523,1658.6,1658.3,0.038]
[1693501941090,10.32145523,1658.6,1658.3,0.038]
[1693501943024,4.52201,1658.6,1658.3,2.164]
[1693501943239,6.60311,1658.7,1658.4,2.126]
[1693501943553,4.52258,1659.1,1658.6,2.126]
[1693501943711,2.2669,1659.0,1658.6,2.126]
[1693501944038,7.75727733,1659.0,1658.5,9.27145]
[1693501946344,7.75727733,1659.0,1658.5,13.7936]
[1693501946509,2.2649,1659.0,1658.5,13.7936]
[1693501947412,11.30648,1659.0,1658.5,2.6233]
[1693501947607,14.2342233,1659.0,1658.4,6.68631]
[1693501947813,18.7550133,1659.0,1658.5,0.038]
[1693501948013,18.7550133,1659.0,1658.4,0.038]
[1693501948014,1.87550133,1658.9,1658.4,0.038]
[1693501948231,11.9706833,1658.8,1658.4,0.038]
[1693501948438,9.04294,1658.8,1658.4,0.038]
[1693501948833,4.52147,1658.8,1658.4,0.038]
[1693501949146,4.52147,1658.8,1658.4,4.56042]
[1693501949343,4.52147,1658.8,1658.5,0.038]
[1693501949547,5.16116713,1658.8,1658.5,0.038]
[1693501949749,4.52147,1658.8,1658.5,0.038]
[1693501950047,9.04235,1658.9,1658.5,0.038]
[1693501950218,2.2649,1659.0,1658.5,11.20829]
[1693501950414,2.2649,1659.0,1658.5,11.17029]
[1693501950618,2.2649,1659.0,1658.5,12.74334]
[1693501951835,2.2649,1659.0,1658.5,17.26549]
[1693501952727,0.002,1659.1,1658.6,11.2857433]
[1693501952958,0.41298463,1658.9,1658.7,17.04455]
[1693501953250,6.70732,1659.4,1658.8,14.0964233]
[1693501953251,0.002,1659.1,1658.8,14.0964233]
[1693501953454,11.22717,1659.4,1659.0,2.126]
[1693501953455,0.002,1659.3,1659.0,2.126]
[1693501953642,0.002,1659.3,1658.9,9.64685]
[1693501953839,0.002,1659.3,1658.9,7.52085]
[1693501954553,0.002,1659.3,1658.9,12.04191]
[1693501955275,0.002,1659.3,1658.9,16.036812]
[1693501956331,0.002,1659.3,1659.0,2.9277433]
[1693501956545,0.101,1659.7,1659.2,14.2857433]
[1693501956746,0.101,1659.7,1659.5,9.1597433]
[1693501956945,0.101,1659.7,1659.6,16.55748]
[1693501957153,0.101,1659.7,1659.6,22.98887263]
[1693501959441,0.101,1659.7,1659.6,32.22087263]
[1693501960068,1.0,1660.0,1659.7,9.232]
[1693501960270,0.101,1660.3,1659.9,29.3591033]
[1693501960499,0.101,1660.3,1660.0,15.1597433]
[1693501960641,0.101,1660.3,1660.1,18.94835229]
[1693501960843,0.101,1660.3,1660.2,6.4077433]
[1693501961042,0.101,1660.3,1660.2,19.9603033]
[1693501961247,0.101,1660.3,1660.2,28.3183033]
[1693501961470,0.101,1660.3,1660.2,28.5594593]
[1693501961773,0.101,1660.3,1660.2,33.1325093]
[1693501961948,0.101,1660.5,1660.2,33.1325093]
[1693501961949,0.101,1660.5,1660.2,33.7311093]
[1693501962156,0.101,1660.5,1660.4,2.126]
[1693501962345,0.101,1660.5,1660.4,16.9586833]
[1693501962669,0.101,1660.5,1660.4,22.9836833]
[1693501962870,0.101,1660.5,1660.4,24.8525853]
[1693501964254,0.101,1660.5,1660.4,35.6015653]
[1693501964471,0.101,1660.5,1660.4,38.6015653]
[1693501965443,0.101,1660.5,1660.4,27.8525853]
[1693501965673,0.101,1660.5,1660.4,24.8525853]
[1693501965848,0.101,1660.5,1660.4,15.8186253]
[1693501966053,0.101,1660.5,1660.4,20.3356053]
[1693501966237,0.49583485,1660.5,1660.4,20.3356053]
[1693501966447,0.49583485,1660.5,1660.4,31.0845853]
[1693501966858,0.101,1660.5,1660.4,34.0845853]
[1693501967178,0.101,1660.7,1660.6,27.29772]
[1693501967365,0.101,1660.8,1660.7,9.232]
[1693501967678,0.101,1660.8,1660.7,32.2132233]
[1693501967866,0.101,1661.0,1660.9,9.232]
[1693501968068,0.101,1661.0,1660.9,32.2116033]
[1693501968259,0.0055594,1661.1,1660.9,22.9796033]
[1693501968579,0.0055594,1661.1,1661.0,3.0]
[1693501968767,0.0055594,1661.1,1660.9,7.756617]
[1693501968947,0.40056828,1661.1,1660.9,7.51558]
[1693501969674,0.40056828,1661.1,1661.0,2.9277433]
[1693501969852,0.40056828,1661.1,1660.9,17.9839433]
[1693501970055,0.40056828,1661.1,1660.9,20.23390263]
[1693501970264,0.40056828,1661.1,1661.0,4.51535]
[1693501970465,0.40056828,1661.1,1661.0,12.0307]
[1693501970859,0.0055594,1661.1,1661.0,12.0307]
[1693501971581,0.0055594,1661.1,1661.0,16.54605]
[1693501971743,0.40060858,1661.1,1661.0,18.61519496]
[1693501972078,0.0055594,1661.1,1661.0,18.61519496]
[1693501972447,0.0055594,1661.1,1660.9,7.54056]
[1693501972651,0.0055594,1661.1,1660.9,4.51556]
[1693501972844,0.0055594,1661.1,1660.7,7.5411]
[1693501972845,0.3949901,1661.0,1660.7,4.5161]
[1693501973147,0.3949901,1661.0,1660.8,2.9277433]
[1693501973369,0.3949901,1661.0,1660.9,4.51562]
[1693501973569,0.0055594,1661.1,1660.9,4.51562]
[1693501973952,0.3949498,1661.0,1660.9,5.75102933]
[1693501974156,0.3949498,1661.0,1660.9,7.51562]
[1693501974781,0.3949498,1661.0,1660.9,12.03124]
[1693501974981,0.3949498,1661.0,1660.9,7.51562]
[1693501975180,0.3949498,1661.0,1660.9,22.4996033]
[1693501975680,0.0055594,1661.1,1660.9,22.4996033]
[1693501975887,0.0055594,1661.1,1661.0,7.51535]
[1693501976274,0.0055594,1661.1,1661.0,12.0307]
[1693501979271,0.0055594,1661.1,1661.0,16.54605]
[1693501979472,0.0055594,1661.1,1661.0,23.9891433]
[1693501979672,0.0055594,1661.1,1661.0,24.4691433]
[1693501979854,0.0055594,1661.1,1661.0,27.24266643]
[1693501980051,0.0055594,1661.1,1661.0,30.24266643]
[1693501980391,0.0055594,1661.1,1661.0,39.49966643]
[1693501980693,0.0055594,1661.1,1661.0,23.32591643]
[1693501980893,0.0055594,1661.1,1661.0,25.72731643]
[1693501981054,0.0055594,1661.1,1661.0,22.72731643]
[1693501981691,0.0055594,1661.1,1660.9,0.241088]
[1693501981901,0.0055594,1661.1,1660.6,4.51638]
[1693501981902,4.5206394,1661.1,1660.6,4.51638]
[1693501982099,4.5206394,1661.1,1660.7,0.04]
[1693501982100,9.0357194,1661.1,1660.7,0.04]
[1693501982272,0.37014846,1661.0,1660.6,0.04]
[1693501982600,9.03134,1660.9,1660.6,0.04]
[1693501982768,4.51567,1660.9,1660.5,4.55669]
[1693501983100,0.37688838,1660.8,1660.6,0.04]
[1693501983400,0.37688838,1660.8,1660.2,8.14101]
[1693501983401,4.51616,1660.7,1660.3,0.04]
[1693501983973,7.06630838,1660.8,1660.3,9.07444]
[1693501984199,7.06630838,1660.8,1660.4,0.04]
[1693501984796,19.02589168,1660.8,1660.4,0.04]
[1693501984990,19.02589168,1660.8,1660.1,0.04]
[1693501985322,16.09814838,1660.8,1660.1,2.9677433]
[1693501985503,19.02589168,1660.8,1660.2,0.04]
[1693501985695,1.90258917,1660.7,1660.2,4.55745]
[1693501985884,4.51645,1660.6,1660.3,0.04]
[1693501986082,4.51645,1660.6,1660.3,3.04]
[1693501986691,9.0329,1660.6,1660.3,0.04]
[1693501986898,16.4770933,1660.6,1660.1,0.04]
[1693501987100,1.64770933,1660.5,1660.1,0.04]
[1693501987287,1.64770933,1660.5,1659.9,0.04]
[1693501987288,16.4787833,1660.4,1659.9,0.04]
[1693501987475,11.9617533,1660.4,1659.9,0.04]
[1693501987684,16.4787833,1660.4,1659.9,0.04]
[1693501987889,1.64787833,1660.3,1659.9,0.04]
[1693501988198,13.5527,1660.2,1659.7,0.04]
[1693501988797,8.43082933,1660.5,1659.7,12.0054633]
[1693501989090,2.2662,1660.5,1660.1,3.025]
[1693501989294,2.2662,1660.5,1660.2,9.07494]
[1693501989922,2.2662,1660.5,1660.2,4.55747]
[1693501990141,4.89277838,1660.8,1660.2,9.07499]
[1693501990419,0.37688838,1660.8,1660.7,4.51616]
[1693501990780,0.37688838,1660.8,1660.6,7.5413]
[1693501990781,6.0255594,1661.1,1660.6,7.5413]
[1693501990981,6.0255594,1661.1,1660.7,4.55609]
[1693501991220,6.0255594,1661.1,1660.8,3.025]
[1693501991383,6.0255594,1661.1,1660.9,4.51562]
[1693501991580,10.5406394,1661.1,1660.7,4.51609]
[1693501991813,6.0255594,1661.1,1660.7,4.51609]
[1693501992015,6.0255594,1661.1,1660.7,10.241998]
[1693501992713,6.0255594,1661.1,1660.7,5.725838]
[1693501993417,15.0558794,1661.1,1660.6,0.04]
[1693501993625,19.5710394,1661.1,1660.6,3.04]
[1693501993792,15.0558794,1661.1,1660.7,0.04]
[1693501994191,10.5407194,1661.1,1660.7,0.04]
[1693501994386,6.0255594,1661.1,1660.7,4.55615]
[1693501994604,6.0255594,1661.1,1660.8,0.455615]
[1693501994788,10.5407394,1661.1,1660.6,7.55638]
[1693501994986,10.5407394,1661.1,1660.7,0.04]
[1693501995190,6.0255594,1661.1,1660.7,9.07212]
[1693501995491,6.0255594,1661.1,1660.8,0.907212]
[1693501995715,6.0255594,1661.1,1660.8,9.938772]
[1693501996399,6.0255594,1661.1,1660.7,4.51596]
[1693501996721,15.0557194,1661.1,1660.6,3.04]
[1693501996897,15.0557194,1661.1,1660.7,0.04]
[1693501996898,17.9834627,1661.1,1660.7,0.04]
[1693501997098,22.4985427,1661.1,1660.6,0.04]
[1693501997304,22.4985427,1661.1,1660.5,0.04]
[1693501997485,13.54714,1660.9,1660.5,0.04]
[1693501997685,2.9277433,1660.8,1660.4,0.04]
[1693501997922,2.9277433,1660.8,1660.3,0.04]
[1693501998102,9.36903427,1660.7,1660.2,0.04]
[1693501998302,0.33643427,1660.7,1660.2,4.55751]
[1693501998506,0.33643427,1660.7,1660.3,0.495751]
[1693501998809,4.51592,1660.8,1660.4,0.04]
[1693501999011,9.03202,1660.8,1660.4,0.04]
[1693501999319,4.51592,1660.8,1660.5,2.9277433]
[1693501999525,6.0255594,1661.1,1660.6,6.025]
[1693501999696,10.5406394,1661.1,1660.7,4.55603]
[1693501999898,15.0557194,1661.1,1660.6,10.58128]
[1693502000098,15.0557194,1661.1,1660.7,0.04]
[1693502001320,15.0557194,1661.1,1660.5,0.04]
[1693502001321,12.042,1661.0,1660.5,0.04]
[1693502001529,5.72003,1660.9,1660.5,0.04]
[1693502001689,12.042,1660.8,1660.5,0.04]
[1693502001890,12.042,1660.8,1660.5,4.55664]
[1693502002888,12.042,1660.8,1660.5,7.4843833]
[1693502003090,12.042,1660.8,1660.7,4.51616]
[1693502004333,12.042,1660.8,1660.7,20.3794763]
[1693502004511,12.042,1660.8,1660.7,23.8594763]
[1693502004709,12.042,1660.8,1660.7,16.94915097]
[1693502004932,12.042,1660.8,1660.7,3.903253]
[1693502005137,12.35302753,1660.8,1660.7,7.51616]
[1693502005434,12.35302753,1660.8,1660.7,12.03232]
[1693502006332,12.35302753,1660.8,1660.6,3.025]
[1693502006532,12.35302753,1660.8,1660.5,0.04]
[1693502007034,12.35302753,1660.8,1660.5,4.55668]
[1693502008201,23.52330928,1660.8,1660.5,0.04]
[1693502008539,23.52330928,1660.8,1660.5,4.55661]
[1693502008540,14.49148928,1660.8,1660.5,4.55661]
[1693502008701,16.86891753,1660.8,1660.5,0.04]
[1693502009033,21.38480753,1660.8,1660.5,0.04]
[1693502009616,16.86891753,1660.8,1660.5,0.04]
[1693502010112,12.35302753,1660.8,1660.5,0.04]
[1693502010312,12.35302753,1660.8,1660.5,4.55667]
[1693502010922,16.86894753,1660.8,1660.5,0.04]
[1693502011241,23.52332528,1660.8,1660.5,0.04]
[1693502011437,21.38486753,1660.8,1660.5,0.04]
[1693502011613,12.35302753,1660.8,1660.5,7.5816]
[1693502011940,12.35302753,1660.8,1660.5,5.9927433]
[1693502012111,12.35302753,1660.8,1660.5,10.5093333]
[1693502012915,12.35302753,1660.8,1660.5,5.9927433]
[1693502013440,12.35302753,1660.8,1660.5,0.04]
[1693502013739,23.07169628,1660.8,1660.5,0.04]
[1693502014207,27.58759628,1660.8,1660.5,0.04]
[1693502014408,30.51533958,1660.8,1660.5,0.04]
[1693502014610,30.51533958,1660.8,1660.2,0.04]
[1693502014826,32.72133958,1660.8,1660.1,0.04]
[1693502015023,3.27213396,1660.7,1660.1,0.04]
[1693502015207,21.07529,1660.6,1660.1,0.04]
[1693502015630,21.38531937,1660.6,1660.1,0.04]
[1693502016142,28.82971267,1660.6,1660.1,0.04]
[1693502016345,28.82971267,1660.6,1659.9,0.04]
[1693502016642,5.08897127,1660.5,1659.9,0.04]
[1693502016822,25.5934,1660.4,1659.9,0.04]
[1693502017940,21.0762,1660.4,1659.9,7.55828]
[1693502018128,16.559,1660.4,1660.0,0.04]
[1693502019625,21.0762,1660.4,1660.0,0.04]
[1693502020027,21.0762,1660.4,1660.0,0.795819]
[1693502020229,21.0762,1660.4,1660.1,0.04]
[1693502020839,21.0762,1660.4,1660.0,0.04]
[1693502021039,12.042,1660.4,1660.0,15.5088433]
[1693502021347,12.042,1660.4,1660.2,4.51752]
[1693502021514,12.042,1660.4,1660.2,12.967559]
[1693502021934,12.042,1660.4,1660.2,15.8953023]
[1693502022447,16.55905,1660.4,1660.1,0.04]
[1693502022646,21.0761,1660.4,1660.0,3.04]
[1693502022870,23.3532,1660.4,1660.1,0.04]
[1693502023049,21.623159,1660.4,1660.1,0.04]
[1693502023231,16.55905,1660.4,1660.0,0.04]
[1693502023421,18.68775,1660.4,1660.0,0.04]
[1693502024232,12.042,1660.4,1660.0,10.5108133]
[1693502024432,12.042,1660.4,1660.2,3.025]
[1693502024644,12.042,1660.4,1660.3,4.51725]
[1693502024825,12.042,1660.4,1660.3,5.723211]
[1693502025030,12.042,1660.4,1660.3,1.205961]
[1693502025262,12.042,1660.4,1660.1,0.04]
[1693502025438,16.55898,1660.4,1660.1,3.04]
[1693502025756,12.042,1660.4,1660.1,7.55775]
[1693502026345,12.042,1660.4,1660.1,3.04]
[1693502026584,13.697871,1660.4,1660.1,3.04]
[1693502026740,18.214881,1660.4,1660.1,3.04]
[1693502026927,18.214881,1660.4,1660.1,0.04]
[1693502027133,18.214881,1660.4,1660.0,0.04]
[1693502027134,33.1766143,1660.4,1660.0,0.04]
[1693502027333,3.31766143,1660.3,1659.9,0.04]
[1693502027535,21.07716,1660.2,1659.9,0.04]
[1693502027743,21.07716,1660.2,1659.7,0.04]
[1693502028281,3.20211373,1660.1,1659.7,0.04]
[1693502028438,25.59636,1660.0,1659.6,0.04]
[1693502028637,28.47620737,1660.0,1659.6,0.04]
[1693502029732,2.9277433,1659.9,1659.6,0.04]
[1693502030041,24.69783,1659.8,1659.3,0.14]
[1693502030379,27.6255733,1659.8,1659.4,0.04]
[1693502031363,13.55748,1659.6,1659.4,0.04]
[1693502031580,13.55748,1659.6,1659.3,0.1]
[1693502031581,12.042,1659.5,1659.3,0.14]
[1693502031778,16.56163,1659.5,1659.3,0.1]
[1693502032179,12.042,1659.5,1659.3,0.1]
[1693502032344,16.56147,1659.5,1659.3,0.1]
[1693502032952,23.189003,1659.5,1659.3,0.1]
[1693502036359,27.708473,1659.5,1659.3,0.1]
[1693502036558,30.6362163,1659.5,1659.3,0.1]
[1693502036947,5.39338114,1659.5,1659.3,0.1]
[1693502037156,0.24136,1659.7,1659.5,3.025]
[1693502037362,0.27437043,1660.1,1659.6,17.16287467]
[1693502037559,4.51722,1660.4,1659.8,3.025]
[1693502037759,12.047,1660.3,1659.9,0.3025]
[1693502037961,12.27679461,1660.3,1660.0,4.51801]
[1693502039575,12.27679461,1660.3,1659.9,4.82079]
[1693502041269,16.79407461,1660.3,1659.9,4.82079]
[1693502042111,21.31135461,1660.3,1659.8,4.51848]
[1693502042398,25.82863461,1660.3,1659.6,7.51908]
[1693502042696,25.82863461,1660.3,1659.7,9.03775]
[1693502043821,16.79407461,1660.3,1659.7,11.9654933]
[1693502043966,16.79407461,1660.3,1659.9,4.5182]
[1693502043967,12.27679461,1660.3,1659.9,4.5182]
[1693502044176,12.27679461,1660.3,1659.9,19.5076233]
[1693502044399,12.27679461,1660.3,1660.1,9.0356]
[1693502047189,12.27679461,1660.3,1660.2,2.9277433]
[1693502047391,12.27679461,1660.3,1660.2,29.1923033]
[1693502047568,0.22979461,1660.3,1660.2,34.19050641]
[1693502047769,4.51538,1661.0,1660.2,34.19050641]
[1693502048101,0.21763715,1660.9,1660.5,9.03299]
[1693502048306,0.21763715,1660.9,1660.6,7.51617]
[1693502048473,0.21763715,1660.9,1660.6,13.98029033]
[1693502048677,0.21763715,1660.9,1660.6,18.49672033]
[1693502049221,6.0255594,1661.1,1660.6,21.42446363]
[1693502049578,10.5406894,1661.1,1660.6,21.42446363]
[1693502050005,10.5406894,1661.1,1660.6,16.90803363]
[1693502050199,12.05634234,1661.1,1660.6,13.98029033]
[1693502050401,12.05634234,1661.1,1660.6,12.0326]
[1693502053228,16.57147234,1661.1,1660.6,12.0326]
[1693502054499,12.05634234,1661.1,1660.6,12.0326]
[1693502055093,7.54121234,1661.1,1660.6,12.0326]
[1693502055298,6.0255594,1661.1,1660.6,16.54903]
[1693502055500,0.21762194,1661.0,1660.6,16.54903]
[1693502060029,9.24834194,1661.0,1660.6,3.0]
[1693502060232,13.76371194,1661.0,1660.6,3.0]
[1693502060420,1.37637119,1660.9,1660.5,3.0]
[1693502060625,1.37637119,1660.9,1660.4,0.04]
[1693502060626,16.4755333,1660.8,1660.4,0.04]
[1693502060823,16.69304609,1660.8,1660.4,0.04]
[1693502061336,12.044,1660.7,1660.4,0.04]
[1693502061535,5.72083,1660.6,1660.4,0.04]
[1693502061836,12.044,1660.5,1660.3,7.12033]
[1693502062024,12.044,1660.5,1660.3,7.08033]
[1693502062224,16.56072,1660.5,1660.2,0.04]
[1693502062923,16.56072,1660.5,1660.2,7.55747]
[1693502063707,16.56072,1660.5,1660.2,3.04]
[1693502064123,18.788875,1660.5,1660.2,3.04]
[1693502064444,18.788875,1660.5,1660.2,7.55749]
[1693502065508,18.788875,1660.5,1660.2,3.04]
[1693502065711,23.305595,1660.5,1660.2,3.04]
[1693502065915,23.305595,1660.5,1660.2,0.04]
[1693502066430,6.8475495,1660.4,1660.2,0.04]
[1693502066619,12.044,1660.3,1660.1,3.04]
[1693502066816,12.044,1660.3,1660.1,3.0]
[1693502067147,21.07851,1660.3,1660.0,0.04]
[1693502067348,1.2044,1660.2,1659.9,0.04]
[1693502067535,16.5618,1660.1,1659.8,0.04]
[1693502069040,16.5618,1660.1,1659.8,3.04]
[1693502069353,28.5251433,1660.1,1659.8,0.04]
[1693502069551,28.5251433,1660.1,1659.4,9.15327]
[1693502069552,2.85251433,1660.0,1659.6,0.04]
[1693502069751,16.56239,1659.9,1659.5,4.5594]
[1693502069917,21.08078,1659.9,1659.6,0.04]
[1693502070118,21.08078,1659.9,1659.5,0.04]
[1693502071121,21.08078,1659.9,1659.5,3.04]
[1693502071321,23.92593643,1659.9,1659.6,0.04]
[1693502071555,12.044,1659.9,1659.6,4.51901]
[1693502071769,12.044,1659.9,1659.6,9.07817]
[1693502071955,12.044,1659.9,1659.6,4.55901]
[1693502073031,0.21596337,1659.8,1659.6,4.55901]
[1693502073228,12.044,1659.7,1659.6,4.51901]
[1693502073835,12.044,1659.7,1659.6,5.422834]
[1693502074168,12.044,1659.7,1659.6,7.542834]
[1693502075779,0.48634199,1660.4,1659.6,29.82673197]
[1693502076082,4.5162,1660.7,1660.3,6.63714]
[1693502076243,4.51595,1660.8,1660.3,12.269841]
[1693502076448,4.51616,1660.7,1660.4,6.63695]
[1693502076660,9.0315,1660.9,1660.4,6.63695]
[1693502076881,9.0315,1660.9,1660.4,11.15393]
[1693502077575,4.51568,1660.9,1660.5,2.12]
[1693502077877,4.51568,1660.9,1660.5,6.235393]
[1693502078079,9.03155,1660.9,1660.5,7.5166]
[1693502079856,9.03155,1660.9,1660.4,4.51695]
[1693502079857,13.54742,1660.9,1660.4,4.51691]
[1693502080377,15.5591,1660.8,1660.4,9.03389]
[1693502080546,11.043,1660.8,1660.5,12.0011033]
[1693502080752,11.043,1660.8,1660.5,9.03336]
[1693502080947,11.043,1660.8,1660.5,6.087677]
[1693502081797,15.55893,1660.8,1660.5,1.571027]
[1693502082279,11.043,1660.8,1660.5,4.5165]
[1693502083089,15.55891,1660.8,1660.5,4.5167]
[1693502083787,11.043,1660.8,1660.5,4.5167]
[1693502084599,15.55892,1660.8,1660.5,4.5167]
[1693502084799,20.07484,1660.8,1660.4,4.55679]
[1693502085005,2.007484,1660.7,1660.5,0.04]
[1693502085202,11.043,1660.6,1660.4,4.55679]
[1693502085371,11.043,1660.6,1660.4,4.51679]